[Event "Late-Titled-Tuesday-Blitz-August-29-2023"]
[Site "Chess.com"]
[Date "2023.08.29"]
[Round "7"]
[White "komogro"]
[Black "Fh2411"]
[Result "1-0"]
[WhiteElo "2496"]
[BlackElo "2625"]
[TimeControl "180+1"]
[EndTime "15:16:59 PDT"]
[Termination "komogro won by resignation"]

1. Nf3 {[%clk 0:03:00]} 1... d5 {[%clk 0:02:58.3]} 2. g3 {[%clk 0:03:00]} 2...
c6 {[%clk 0:02:58.7]} 3. Bg2 {[%clk 0:03:00.5]} 3... Bf5 {[%clk 0:02:59.4]} 4.
c4 {[%clk 0:03:00.4]} 4... e6 {[%clk 0:03:00]} 5. Qb3 {[%clk 0:02:59]} 5... Qb6
{[%clk 0:02:59.9]} 6. d3 {[%clk 0:02:59.2]} 6... Nd7 {[%clk 0:02:59.8]} 7. Be3
{[%clk 0:02:57.4]} 7... Bc5 {[%clk 0:02:59.5]} 8. Bxc5 {[%clk 0:02:55.8]} 8...
Nxc5 {[%clk 0:03:00.4]} 9. Qa3 {[%clk 0:02:55]} 9... a5 {[%clk 0:02:52.7]} 10.
O-O {[%clk 0:02:53.2]} 10... Qb4 {[%clk 0:02:48.4]} 11. cxd5 {[%clk 0:02:45]}
11... exd5 {[%clk 0:02:47.6]} 12. Qc3 {[%clk 0:02:44.5]} 12... Qxc3 {[%clk
0:02:46.9]} 13. Nxc3 {[%clk 0:02:45.4]} 13... Nf6 {[%clk 0:02:46.6]} 14. Nd4
{[%clk 0:02:42.6]} 14... Bg6 {[%clk 0:02:36.4]} 15. Rac1 {[%clk 0:02:42.4]}
15... Nfd7 {[%clk 0:02:29]} 16. h3 {[%clk 0:02:38.3]} 16... O-O {[%clk
0:02:28.4]} 17. b3 {[%clk 0:02:22.3]} 17... Rfe8 {[%clk 0:02:27.3]} 18. Rfe1
{[%clk 0:02:22.1]} 18... h6 {[%clk 0:02:20.8]} 19. f4 {[%clk 0:02:18.8]} 19...
f6 {[%clk 0:02:11.8]} 20. Kf2 {[%clk 0:02:09.7]} 20... Bxd3 {[%clk 0:01:52.2]}
21. exd3 {[%clk 0:01:23.5]} 21... Nxd3+ {[%clk 0:01:53.1]} 22. Kf1 {[%clk
0:01:24.3]} 22... Rxe1+ {[%clk 0:01:48.7]} 23. Rxe1 {[%clk 0:01:25.2]} 23...
Nxe1 {[%clk 0:01:49.6]} 24. Kxe1 {[%clk 0:01:26]} 24... g6 {[%clk 0:01:47.2]}
25. Kd2 {[%clk 0:01:25]} 25... Kf7 {[%clk 0:01:47.1]} 26. Bf3 {[%clk 0:01:11.1]}
26... f5 {[%clk 0:01:45.5]} 27. Be2 {[%clk 0:01:06.9]} 27... Nf6 {[%clk
0:01:45.6]} 28. Nf3 {[%clk 0:01:07.2]} 28... Rg8 {[%clk 0:01:31.1]} 29. Ne5+
{[%clk 0:01:06.8]} 29... Ke6 {[%clk 0:01:31.8]} 30. Ke3 {[%clk 0:01:05.3]} 30...
c5 {[%clk 0:01:20.9]} 31. Na4 {[%clk 0:01:05]} 31... Ne4 {[%clk 0:01:17.2]} 32.
Bf3 {[%clk 0:01:02.3]} 32... Kd6 {[%clk 0:01:09.8]} 33. Bxe4 {[%clk 0:00:48.6]}
33... fxe4 {[%clk 0:01:10.7]} 34. Nf7+ {[%clk 0:00:39.9]} 34... Kc6 {[%clk
0:01:10.4]} 35. Ne5+ {[%clk 0:00:36.2]} 35... Kb5 {[%clk 0:00:59.7]} 36. Nc3+
{[%clk 0:00:35.5]} 36... Kb4 {[%clk 0:01:00.3]} 37. Nxd5+ {[%clk 0:00:35.7]}
37... Ka3 {[%clk 0:01:01]} 38. Nc3 {[%clk 0:00:34.5]} 38... g5 {[%clk
0:00:57.2]} 39. Nc4+ {[%clk 0:00:33.1]} 39... Kb4 {[%clk 0:00:53.7]} 40. Nd5+
{[%clk 0:00:27.7]} 40... Kb5 {[%clk 0:00:54.1]} 41. a4+ {[%clk 0:00:25.9]} 41...
Ka6 {[%clk 0:00:51.6]} 42. f5 {[%clk 0:00:25.4]} 42... Rd8 {[%clk 0:00:45.7]}
43. Kxe4 {[%clk 0:00:24]} 43... Re8+ {[%clk 0:00:45.5]} 44. Ne5 {[%clk
0:00:21.2]} 44... Ka7 {[%clk 0:00:39.1]} 45. f6 {[%clk 0:00:21]} 45... b5 {[%clk
0:00:27.9]} 46. Nc7 {[%clk 0:00:20.8]} 46... Rf8 {[%clk 0:00:23.6]} 47. Nxb5+
{[%clk 0:00:18.4]} 47... Kb7 {[%clk 0:00:24.1]} 48. f7 {[%clk 0:00:17.7]} 1-0

[Event "Late-Titled-Tuesday-Blitz-August-29-2023"]
[Site "Chess.com"]
[Date "2023.08.29"]
[Round "7"]
[White "alturas_pacificas"]
[Black "Chessdreamer2020"]
[Result "0-1"]
[WhiteElo "2416"]
[BlackElo "2525"]
[TimeControl "180+1"]
[EndTime "15:17:00 PDT"]
[Termination "Chessdreamer2020 won on time"]

1. d4 {[%clk 0:03:00.7]} 1... d6 {[%clk 0:03:00.2]} 2. Nf3 {[%clk 0:03:00.6]}
2... Bg4 {[%clk 0:03:00.4]} 3. e3 {[%clk 0:02:59.9]} 3... Nd7 {[%clk 0:02:59.2]}
4. Bc4 {[%clk 0:02:59.7]} 4... e6 {[%clk 0:02:56]} 5. h3 {[%clk 0:02:59.2]} 5...
Bh5 {[%clk 0:02:55.9]} 6. b3 {[%clk 0:02:54.6]} 6... d5 {[%clk 0:02:56.2]} 7.
Be2 {[%clk 0:02:54.6]} 7... Be7 {[%clk 0:02:55.5]} 8. Bb2 {[%clk 0:02:53.8]}
8... h6 {[%clk 0:02:55.4]} 9. O-O {[%clk 0:02:52.4]} 9... Ngf6 {[%clk
0:02:55.6]} 10. c4 {[%clk 0:02:52.3]} 10... c6 {[%clk 0:02:55.2]} 11. Nc3 {[%clk
0:02:52.4]} 11... O-O {[%clk 0:02:55.5]} 12. Nd2 {[%clk 0:02:43.6]} 12... Bg6
{[%clk 0:02:54.5]} 13. Nf3 {[%clk 0:02:41.5]} 13... Bd6 {[%clk 0:02:53.6]} 14.
Bd3 {[%clk 0:02:40.1]} 14... Bxd3 {[%clk 0:02:49.4]} 15. Qxd3 {[%clk 0:02:40.1]}
15... Re8 {[%clk 0:02:47]} 16. Rad1 {[%clk 0:02:35.2]} 16... Qa5 {[%clk
0:02:45]} 17. a3 {[%clk 0:02:19.2]} 17... Rad8 {[%clk 0:02:43.2]} 18. b4 {[%clk
0:02:18]} 18... Qc7 {[%clk 0:02:37.7]} 19. c5 {[%clk 0:02:11.7]} 19... Bf8
{[%clk 0:02:37.3]} 20. e4 {[%clk 0:02:11.6]} 20... dxe4 {[%clk 0:02:35.2]} 21.
Nxe4 {[%clk 0:02:12.5]} 21... Nxe4 {[%clk 0:02:35]} 22. Qxe4 {[%clk 0:02:12.5]}
22... Nf6 {[%clk 0:02:35.6]} 23. Qe5 {[%clk 0:02:11.1]} 23... Nd5 {[%clk
0:02:21.7]} 24. Qxc7 {[%clk 0:02:06.8]} 24... Nxc7 {[%clk 0:02:22.6]} 25. Nd2
{[%clk 0:01:56.3]} 25... Be7 {[%clk 0:02:19]} 26. Nc4 {[%clk 0:01:54.1]} 26...
Rd7 {[%clk 0:02:16.3]} 27. Rfe1 {[%clk 0:01:52]} 27... Red8 {[%clk 0:02:15.5]}
28. a4 {[%clk 0:01:44.4]} 28... Ne8 {[%clk 0:02:11.1]} 29. Kf1 {[%clk
0:01:35.8]} 29... Bf6 {[%clk 0:02:11.3]} 30. Re4 {[%clk 0:01:02.8]} 30... Nc7
{[%clk 0:02:09.5]} 31. Nd6 {[%clk 0:00:59.2]} 31... Nd5 {[%clk 0:02:09.2]} 32.
b5 {[%clk 0:00:49.7]} 32... Be7 {[%clk 0:02:08]} 33. Nc4 {[%clk 0:00:36.8]}
33... Nf6 {[%clk 0:02:07.8]} 34. Ree1 {[%clk 0:00:34.7]} 34... Bxc5 {[%clk
0:02:07]} 35. bxc6 {[%clk 0:00:32.4]} 35... bxc6 {[%clk 0:02:06.4]} 36. Na5
{[%clk 0:00:32.9]} 36... Bb4 {[%clk 0:02:02.1]} 37. Nxc6 {[%clk 0:00:31.7]}
37... Bxe1 {[%clk 0:01:52.9]} 38. Nxd8 {[%clk 0:00:31.8]} 38... Rxd8 {[%clk
0:01:38.8]} 39. Kxe1 {[%clk 0:00:30.5]} 39... Rb8 {[%clk 0:01:36.3]} 40. Bc3
{[%clk 0:00:24.1]} 40... Nd5 {[%clk 0:01:36.1]} 41. Bd2 {[%clk 0:00:22]} 41...
Rb3 {[%clk 0:01:34.5]} 42. Rc1 {[%clk 0:00:20.7]} 42... Rb7 {[%clk 0:01:12.9]}
43. a5 {[%clk 0:00:20.4]} 43... Kf8 {[%clk 0:01:12]} 44. Ke2 {[%clk 0:00:20.2]}
44... Ke7 {[%clk 0:01:12]} 45. Rc5 {[%clk 0:00:20.1]} 45... Kd7 {[%clk
0:01:11.6]} 46. g4 {[%clk 0:00:19.5]} 46... Rb2 {[%clk 0:01:11]} 47. Kd3 {[%clk
0:00:17.2]} 47... Ra2 {[%clk 0:01:10.9]} 48. f3 {[%clk 0:00:12.7]} 48... Ne7
{[%clk 0:01:08.3]} 49. Rb5 {[%clk 0:00:08.7]} 49... Kc8 {[%clk 0:00:59.1]} 50.
h4 {[%clk 0:00:07.9]} 50... Nd5 {[%clk 0:00:56.5]} 51. Rc5+ {[%clk 0:00:07.7]}
51... Kd7 {[%clk 0:00:54.5]} 52. h5 {[%clk 0:00:08]} 52... Rb2 {[%clk
0:00:53.4]} 53. Rc1 {[%clk 0:00:03.4]} 53... Rb3+ {[%clk 0:00:53.4]} 54. Ke2
{[%clk 0:00:03.4]} 54... Rb2 {[%clk 0:00:53.1]} 55. Kd3 {[%clk 0:00:03.6]} 55...
Ne7 {[%clk 0:00:53.5]} 56. Rc4 {[%clk 0:00:02.9]} 56... Nc6 {[%clk 0:00:53.4]}
57. Rc3 {[%clk 0:00:02.5]} 57... Ra2 {[%clk 0:00:53.5]} 58. Rc5 {[%clk
0:00:02.5]} 58... Ra3+ {[%clk 0:00:53.5]} 59. Ke2 {[%clk 0:00:02.7]} 59... Nxd4+
{[%clk 0:00:53.7]} 60. Kd1 {[%clk 0:00:02.9]} 60... Nxf3 {[%clk 0:00:53.8]} 61.
Rb5 {[%clk 0:00:02.4]} 61... Rd3 {[%clk 0:00:51.4]} 0-1

[Event "Late-Titled-Tuesday-Blitz-August-29-2023"]
[Site "Chess.com"]
[Date "2023.08.29"]
[Round "7"]
[White "powermove"]
[Black "Onthequiet"]
[Result "1-0"]
[WhiteElo "2093"]
[BlackElo "2358"]
[TimeControl "180+1"]
[EndTime "15:17:04 PDT"]
[Termination "powermove won on time"]

1. e4 {[%clk 0:03:00.9]} 1... c6 {[%clk 0:02:58.9]} 2. d4 {[%clk 0:02:59.8]}
2... d5 {[%clk 0:02:59.4]} 3. e5 {[%clk 0:02:59.9]} 3... Bf5 {[%clk 0:02:58]} 4.
h4 {[%clk 0:02:59.5]} 4... h6 {[%clk 0:02:57.1]} 5. g4 {[%clk 0:02:59]} 5... Be4
{[%clk 0:02:57.6]} 6. f3 {[%clk 0:02:58.4]} 6... Bh7 {[%clk 0:02:56.9]} 7. e6
{[%clk 0:02:57.8]} 7... Qd6 {[%clk 0:02:56.3]} 8. exf7+ {[%clk 0:02:56.4]} 8...
Kxf7 {[%clk 0:02:57.2]} 9. Be3 {[%clk 0:02:54.4]} 9... Nf6 {[%clk 0:02:55.7]}
10. c3 {[%clk 0:02:51.7]} 10... Nbd7 {[%clk 0:02:55]} 11. Bd3 {[%clk 0:02:40.1]}
11... Bxd3 {[%clk 0:02:49.2]} 12. Qxd3 {[%clk 0:02:39]} 12... e5 {[%clk
0:02:49.5]} 13. Qf5 {[%clk 0:02:31.8]} 13... Qe6 {[%clk 0:02:46.8]} 14. Qxe6+
{[%clk 0:02:29.4]} 14... Kxe6 {[%clk 0:02:46.4]} 15. Ne2 {[%clk 0:02:26.6]}
15... Bd6 {[%clk 0:02:44.3]} 16. Nd2 {[%clk 0:02:24]} 16... Rae8 {[%clk
0:02:42]} 17. Kf2 {[%clk 0:02:23.7]} 17... e4 {[%clk 0:02:39.7]} 18. g5 {[%clk
0:02:18]} 18... exf3 {[%clk 0:02:36.8]} 19. gxf6 {[%clk 0:02:02.1]} 19... fxe2
{[%clk 0:02:35.6]} 20. fxg7 {[%clk 0:02:01.8]} 20... Rh7 {[%clk 0:02:32.1]} 21.
Rhg1 {[%clk 0:01:45.5]} 21... Rg8 {[%clk 0:02:30.3]} 22. Kxe2 {[%clk 0:01:44.2]}
22... Rhxg7 {[%clk 0:02:22.4]} 23. Rxg7 {[%clk 0:01:42.1]} 23... Rxg7 {[%clk
0:02:22.9]} 24. Bxh6 {[%clk 0:01:41.5]} 24... Rg2+ {[%clk 0:02:21.1]} 25. Kd3
{[%clk 0:01:39.9]} 25... c5 {[%clk 0:02:13.1]} 26. Re1+ {[%clk 0:01:37.5]} 26...
Kf7 {[%clk 0:02:12.5]} 27. Rf1+ {[%clk 0:01:23.8]} 27... Kg6 {[%clk 0:02:10.1]}
28. Bg5 {[%clk 0:01:23.6]} 28... c4+ {[%clk 0:02:06]} 29. Kc2 {[%clk 0:01:21.9]}
29... b5 {[%clk 0:02:00.7]} 30. Re1 {[%clk 0:01:21.2]} 30... Kf7 {[%clk
0:01:56.9]} 31. Kb1 {[%clk 0:01:12.8]} 31... b4 {[%clk 0:01:52.1]} 32. Nf3
{[%clk 0:01:08.1]} 32... a5 {[%clk 0:01:41.7]} 33. Rf1 {[%clk 0:00:59.4]} 33...
Ke8 {[%clk 0:01:30.1]} 34. Re1+ {[%clk 0:00:55.2]} 34... Kf7 {[%clk 0:01:28.2]}
35. Rf1 {[%clk 0:00:54.3]} 35... Kg8 {[%clk 0:01:26.9]} 36. Re1 {[%clk
0:00:53.1]} 36... Rf2 {[%clk 0:01:22.8]} 37. Re6 {[%clk 0:00:47]} 37... Bf8
{[%clk 0:01:17.8]} 38. Ne5 {[%clk 0:00:45.1]} 38... Re2 {[%clk 0:01:03.4]} 39.
Re8 {[%clk 0:00:25.8]} 39... Nxe5 {[%clk 0:00:59.3]} 40. dxe5 {[%clk 0:00:25.1]}
40... Kf7 {[%clk 0:00:56.5]} 41. Ra8 {[%clk 0:00:22.7]} 41... bxc3 {[%clk
0:00:54.2]} 42. bxc3 {[%clk 0:00:21.3]} 42... Rxe5 {[%clk 0:00:44.4]} 43. Rxa5
{[%clk 0:00:20.4]} 43... Ke6 {[%clk 0:00:31.9]} 44. Ra6+ {[%clk 0:00:20.3]}
44... Kd7 {[%clk 0:00:22.4]} 45. Rf6 {[%clk 0:00:18.6]} 45... Ba3 {[%clk
0:00:19.2]} 46. Rf7+ {[%clk 0:00:17.5]} 46... Kc6 {[%clk 0:00:18]} 47. Rf6+
{[%clk 0:00:17.4]} 47... Kb5 {[%clk 0:00:15.8]} 48. Rf1 {[%clk 0:00:15.6]} 48...
Re2 {[%clk 0:00:14.9]} 49. Rh1 {[%clk 0:00:14.7]} 49... Bb2 {[%clk 0:00:13.9]}
50. h5 {[%clk 0:00:13.7]} 50... Bxc3 {[%clk 0:00:14.1]} 51. h6 {[%clk
0:00:13.8]} 51... Bh8 {[%clk 0:00:14.6]} 52. h7 {[%clk 0:00:13.5]} 1-0

[Event "Late-Titled-Tuesday-Blitz-August-29-2023"]
[Site "Chess.com"]
[Date "2023.08.29"]
[Round "7"]
[White "ozates"]
[Black "KNVB"]
[Result "0-1"]
[WhiteElo "2578"]
[BlackElo "2817"]
[TimeControl "180+1"]
[EndTime "15:17:34 PDT"]
[Termination "KNVB won by resignation"]

1. e4 {[%clk 0:03:00.9]} 1... c5 {[%clk 0:02:59.1]} 2. Nf3 {[%clk 0:03:01]} 2...
e6 {[%clk 0:02:59.6]} 3. g3 {[%clk 0:02:59.1]} 3... Nc6 {[%clk 0:02:59.8]} 4.
Bg2 {[%clk 0:02:59.2]} 4... Nf6 {[%clk 0:03:00.3]} 5. d3 {[%clk 0:02:58.1]} 5...
d5 {[%clk 0:02:58]} 6. Nbd2 {[%clk 0:02:56.5]} 6... g6 {[%clk 0:02:58.4]} 7. O-O
{[%clk 0:02:56.4]} 7... Bg7 {[%clk 0:02:59]} 8. exd5 {[%clk 0:02:49.7]} 8...
Nxd5 {[%clk 0:02:56.1]} 9. Ne4 {[%clk 0:02:45.2]} 9... b6 {[%clk 0:02:50.8]} 10.
Bg5 {[%clk 0:02:45.3]} 10... Qc7 {[%clk 0:02:40.9]} 11. c4 {[%clk 0:02:42.2]}
11... Nde7 {[%clk 0:02:40.7]} 12. Bf6 {[%clk 0:02:02.4]} 12... O-O {[%clk
0:02:32]} 13. Qd2 {[%clk 0:02:02.2]} 13... Bb7 {[%clk 0:02:06.7]} 14. Qc3 {[%clk
0:02:02]} 14... Nf5 {[%clk 0:01:42.9]} 15. Bxg7 {[%clk 0:01:54.9]} 15... Nxg7
{[%clk 0:01:43.8]} 16. Nf6+ {[%clk 0:01:55.4]} 16... Kh8 {[%clk 0:01:43.8]} 17.
Ng5 {[%clk 0:01:55.8]} 17... h6 {[%clk 0:01:37]} 18. Ngh7 {[%clk 0:01:54.9]}
18... Rfd8 {[%clk 0:01:35]} 19. Qd2 {[%clk 0:01:50.8]} 19... Nf5 {[%clk
0:00:35.2]} 20. g4 {[%clk 0:01:50.2]} 20... Kg7 {[%clk 0:00:35.7]} 21. gxf5
{[%clk 0:01:49.8]} 21... exf5 {[%clk 0:00:36.6]} 22. Rae1 {[%clk 0:01:33.6]}
22... Nd4 {[%clk 0:00:33]} 23. Qe3 {[%clk 0:01:21.2]} 23... Bxg2 {[%clk
0:00:11.8]} 24. Kxg2 {[%clk 0:01:20.9]} 24... Rh8 {[%clk 0:00:12.6]} 25. Qe5
{[%clk 0:01:03.4]} 25... Qxe5 {[%clk 0:00:10.7]} 26. Rxe5 {[%clk 0:01:04.3]}
26... Rxh7 {[%clk 0:00:06.9]} 27. Nxh7 {[%clk 0:01:05.2]} 27... Kxh7 {[%clk
0:00:07.8]} 28. Re7 {[%clk 0:00:57.1]} 28... Kg7 {[%clk 0:00:07.5]} 29. Rfe1
{[%clk 0:00:56.4]} 29... Kf6 {[%clk 0:00:08.1]} 30. Rd7 {[%clk 0:00:55.3]} 30...
Ne6 {[%clk 0:00:08.2]} 31. a3 {[%clk 0:00:39.7]} 31... a5 {[%clk 0:00:01.6]} 32.
Rd6 {[%clk 0:00:31]} 32... Rb8 {[%clk 0:00:01.5]} 33. f4 {[%clk 0:00:26.2]}
33... Ke7 {[%clk 0:00:01.7]} 34. Rd5 {[%clk 0:00:25.6]} 34... Kf6 {[%clk
0:00:02.3]} 35. Kf3 {[%clk 0:00:24.8]} 35... Rb7 {[%clk 0:00:02.5]} 36. b4
{[%clk 0:00:21.1]} 36... axb4 {[%clk 0:00:02.8]} 37. axb4 {[%clk 0:00:22]} 37...
Ra7 {[%clk 0:00:03.1]} 38. b5 {[%clk 0:00:17]} 38... Ke7 {[%clk 0:00:01.9]} 39.
d4 {[%clk 0:00:13.2]} 39... cxd4 {[%clk 0:00:01.9]} 40. Rxd4 {[%clk 0:00:14.1]}
40... Ra3+ {[%clk 0:00:02.2]} 41. Kf2 {[%clk 0:00:11.6]} 41... Ra2+ {[%clk
0:00:02.6]} 42. Kg1 {[%clk 0:00:10.6]} 42... Kf6 {[%clk 0:00:02.4]} 43. Rd6
{[%clk 0:00:10.9]} 43... Rc2 {[%clk 0:00:02.7]} 44. Rc6 {[%clk 0:00:09.5]} 44...
Kg7 {[%clk 0:00:02.5]} 45. Rxb6 {[%clk 0:00:06.7]} 45... Nxf4 {[%clk 0:00:02.9]}
46. Rc6 {[%clk 0:00:03.9]} 46... Nh3+ {[%clk 0:00:03.4]} 47. Kh1 {[%clk
0:00:04.1]} 47... Nf2+ {[%clk 0:00:03.5]} 48. Kg1 {[%clk 0:00:04.4]} 48... Nd3
{[%clk 0:00:04]} 49. Rd1 {[%clk 0:00:04.2]} 49... Ne5 {[%clk 0:00:02.7]} 50. Rc7
{[%clk 0:00:04.3]} 50... Nf3+ {[%clk 0:00:02.8]} 51. Kf1 {[%clk 0:00:03.6]}
51... Nxh2+ {[%clk 0:00:03.5]} 52. Kg1 {[%clk 0:00:04.2]} 52... Nf3+ {[%clk
0:00:04.3]} 53. Kf1 {[%clk 0:00:04.9]} 53... g5 {[%clk 0:00:04.4]} 54. Rdd7
{[%clk 0:00:04.6]} 54... g4 {[%clk 0:00:04.6]} 55. Rxf7+ {[%clk 0:00:04.8]}
55... Kg6 {[%clk 0:00:05.4]} 56. Rg7+ {[%clk 0:00:05.1]} 56... Kf6 {[%clk
0:00:04.8]} 57. Rcf7+ {[%clk 0:00:04.3]} 57... Ke6 {[%clk 0:00:04.7]} 58. Re7+
{[%clk 0:00:04.5]} 58... Kf6 {[%clk 0:00:05.3]} 59. Rgf7+ {[%clk 0:00:04.6]}
59... Kg5 {[%clk 0:00:05.6]} 60. Rg7+ {[%clk 0:00:05.5]} 60... Kf4 {[%clk
0:00:06.1]} 61. Re2 {[%clk 0:00:04.7]} 61... Rc1+ {[%clk 0:00:05.8]} 62. Kf2
{[%clk 0:00:05.4]} 62... Rxc4 {[%clk 0:00:05.5]} 63. Rb2 {[%clk 0:00:05.5]}
63... Ne5 {[%clk 0:00:05.1]} 64. b6 {[%clk 0:00:05.7]} 64... Nd3+ {[%clk
0:00:05.7]} 65. Ke2 {[%clk 0:00:06.4]} 65... Nxb2 {[%clk 0:00:06.6]} 66. b7
{[%clk 0:00:06.7]} 66... Rb4 {[%clk 0:00:07.3]} 67. Kd2 {[%clk 0:00:07.3]} 67...
Na4 {[%clk 0:00:07.2]} 68. Kd3 {[%clk 0:00:06.7]} 68... Rxb7 {[%clk 0:00:07.1]}
69. Rxb7 {[%clk 0:00:06.5]} 69... Nc5+ {[%clk 0:00:07.7]} 0-1

[Event "Late-Titled-Tuesday-Blitz-August-29-2023"]
[Site "Chess.com"]
[Date "2023.08.29"]
[Round "7"]
[White "Oleksandr_Bortnyk"]
[Black "EsmeraldasAnderson03"]
[Result "0-1"]
[WhiteElo "3004"]
[BlackElo "2421"]
[TimeControl "180+1"]
[EndTime "15:17:34 PDT"]
[Termination "EsmeraldasAnderson03 won on time"]

1. d4 {[%clk 0:02:51.9]} 1... d5 {[%clk 0:02:59.7]} 2. Nc3 {[%clk 0:02:51.8]}
2... Nf6 {[%clk 0:02:58.9]} 3. Bf4 {[%clk 0:02:46]} 3... a6 {[%clk 0:02:56.5]}
4. e3 {[%clk 0:02:46.2]} 4... e6 {[%clk 0:02:55.8]} 5. Nf3 {[%clk 0:02:43.2]}
5... b5 {[%clk 0:02:55.3]} 6. a3 {[%clk 0:02:43.8]} 6... Bd6 {[%clk 0:02:53.6]}
7. b4 {[%clk 0:02:40.5]} 7... O-O {[%clk 0:02:53]} 8. Ne5 {[%clk 0:02:38.3]}
8... Bb7 {[%clk 0:02:51.4]} 9. Bd3 {[%clk 0:02:38.4]} 9... Nbd7 {[%clk
0:02:51.6]} 10. Qf3 {[%clk 0:02:38]} 10... Nb6 {[%clk 0:02:40.8]} 11. Bg5 {[%clk
0:02:28.1]} 11... Be7 {[%clk 0:02:38.3]} 12. Qh3 {[%clk 0:02:23.4]} 12... Ne4
{[%clk 0:02:29.9]} 13. Bxe7 {[%clk 0:02:11.8]} 13... Qxe7 {[%clk 0:02:30.8]} 14.
f3 {[%clk 0:02:12.3]} 14... f6 {[%clk 0:02:15.5]} 15. fxe4 {[%clk 0:02:10]}
15... dxe4 {[%clk 0:02:11.4]} 16. Nxe4 {[%clk 0:02:08.3]} 16... fxe5 {[%clk
0:02:11.1]} 17. Nc5 {[%clk 0:01:55.5]} 17... e4 {[%clk 0:02:11]} 18. Nxe4 {[%clk
0:01:45.6]} 18... g6 {[%clk 0:02:03.9]} 19. Nc5 {[%clk 0:01:41.4]} 19... Bd5
{[%clk 0:02:04.3]} 20. e4 {[%clk 0:01:36.1]} 20... Bc4 {[%clk 0:02:04.6]} 21.
Bxc4 {[%clk 0:01:28.1]} 21... Nxc4 {[%clk 0:02:05.5]} 22. Qxe6+ {[%clk
0:01:28.3]} 22... Rf7 {[%clk 0:01:43.5]} 23. Qxe7 {[%clk 0:01:21.2]} 23... Rxe7
{[%clk 0:01:43.5]} 24. O-O {[%clk 0:01:18.2]} 24... a5 {[%clk 0:01:37.3]} 25. c3
{[%clk 0:01:13.9]} 25... c6 {[%clk 0:01:37.2]} 26. e5 {[%clk 0:01:13.2]} 26...
Ne3 {[%clk 0:01:36.8]} 27. Rf3 {[%clk 0:01:09.2]} 27... Nd5 {[%clk 0:01:35.7]}
28. Raf1 {[%clk 0:01:08.5]} 28... axb4 {[%clk 0:01:34]} 29. axb4 {[%clk
0:01:06.7]} 29... Ra3 {[%clk 0:01:34.3]} 30. h4 {[%clk 0:00:50.4]} 30... Rxc3
{[%clk 0:01:32.1]} 31. Rf8+ {[%clk 0:00:49.2]} 31... Kg7 {[%clk 0:01:32]} 32.
Kh2 {[%clk 0:00:42.1]} 32... Rc4 {[%clk 0:01:31.3]} 33. R1f7+ {[%clk 0:00:30.6]}
33... Kh6 {[%clk 0:01:19.5]} 34. Ne6 {[%clk 0:00:30.9]} 34... Rxe6 {[%clk
0:01:16.1]} 35. Rh8 {[%clk 0:00:29.4]} 35... Kh5 {[%clk 0:01:09.5]} 36. Kh3
{[%clk 0:00:22.7]} 36... Rc3+ {[%clk 0:01:05.8]} 37. g3 {[%clk 0:00:23.2]} 37...
h6 {[%clk 0:01:05]} 38. Rhf8 {[%clk 0:00:02.4]} 38... g5 {[%clk 0:00:59.3]} 39.
hxg5 {[%clk 0:00:02.4]} 39... hxg5 {[%clk 0:01:00.2]} 40. Rh8+ {[%clk
0:00:01.6]} 40... Rh6 {[%clk 0:01:00.6]} 41. Rxh6+ {[%clk 0:00:01.3]} 41... Kxh6
{[%clk 0:01:01.5]} 42. Kg4 {[%clk 0:00:01.5]} 42... Rc4 {[%clk 0:00:59]} 43. Kf5
{[%clk 0:00:01.6]} 43... Rxd4 {[%clk 0:00:58.7]} 44. Rf8 {[%clk 0:00:02]} 44...
Rxb4 {[%clk 0:00:52.4]} 45. Rh8+ {[%clk 0:00:01.9]} 45... Kg7 {[%clk 0:00:52.7]}
46. Rd8 {[%clk 0:00:02.7]} 46... g4 {[%clk 0:00:51.9]} 47. Rd7+ {[%clk
0:00:02.8]} 47... Kf8 {[%clk 0:00:52.5]} 48. Rd6 {[%clk 0:00:01.9]} 48... Rc4
{[%clk 0:00:30.4]} 49. e6 {[%clk 0:00:02.3]} 49... b4 {[%clk 0:00:28.8]} 50.
Rd8+ {[%clk 0:00:02.7]} 50... Ke7 {[%clk 0:00:28.8]} 51. Rd7+ {[%clk 0:00:02.8]}
51... Ke8 {[%clk 0:00:29.2]} 52. Rb7 {[%clk 0:00:03.7]} 52... Kd8 {[%clk
0:00:24.4]} 53. Ke5 {[%clk 0:00:03.3]} 53... Kc8 {[%clk 0:00:24.7]} 54. Ra7
{[%clk 0:00:03]} 54... b3 {[%clk 0:00:22.1]} 55. Ra8+ {[%clk 0:00:01.3]} 55...
Kb7 {[%clk 0:00:22]} 56. Ra1 {[%clk 0:00:02.1]} 56... b2 {[%clk 0:00:21.3]} 57.
Rb1 {[%clk 0:00:02.7]} 57... Rb4 {[%clk 0:00:21.9]} 58. Kd6 {[%clk 0:00:03.4]}
58... Kb6 {[%clk 0:00:20.7]} 59. Kd7 {[%clk 0:00:01.5]} 59... Kb5 {[%clk
0:00:19.5]} 60. Kd6 {[%clk 0:00:02]} 60... Rb3 {[%clk 0:00:08.6]} 61. Kd7 {[%clk
0:00:01.8]} 61... c5 {[%clk 0:00:08.7]} 62. Kd6 {[%clk 0:00:02.2]} 62... Kc4
{[%clk 0:00:09.3]} 63. Ke5 {[%clk 0:00:02.3]} 63... Rb6 {[%clk 0:00:07.7]} 64.
Kf5 {[%clk 0:00:02]} 64... Rb7 {[%clk 0:00:07.8]} 65. Ke5 {[%clk 0:00:02.3]}
65... Nc3 {[%clk 0:00:07.8]} 66. e7 {[%clk 0:00:02.9]} 66... Nxb1 {[%clk
0:00:07.7]} 67. e8=Q {[%clk 0:00:03.1]} 67... Nc3 {[%clk 0:00:07.3]} 68. Qe6+
{[%clk 0:00:02.1]} 68... Kb4 {[%clk 0:00:07.5]} 69. Qc6 {[%clk 0:00:01.4]} 69...
Rb5 {[%clk 0:00:06.5]} 0-1